fUSD/lending_fUSD_20251217
["ID","MTS","AMOUNT","RATE_DAILY","PERIOD"]
[398934541,1766006229964,500.0,0.00012538,2]
[398934542,1766006230152,500.0,0.00012538,2]
[398934543,1766006230802,150.0,0.00012538,2]
[398934544,1766006231162,150.0,0.00012538,2]
[398934545,1766006233172,500.0,0.00012538,2]
[398934546,1766006233842,500.0,0.00012538,2]
[398934547,1766006234491,150.0,0.00012538,2]
[398934548,1766006234583,500.0,0.00012538,2]
[398934549,1766006237764,150.0,0.00012538,2]
[398934550,1766006237827,150.0,0.00012538,2]
[398934551,1766006238073,150.0,0.00012538,2]
[398934552,1766006246081,500.0,0.00018,30]
[398934553,1766006251886,244.13,0.00012303,2]
[398934554,1766006339720,3905.87,0.00012278,2]
[398934556,1766006428423,386.72,0.00012015,2]
[398934557,1766006491604,999.0,0.00011922,3]
[398934558,1766006631106,-1200.0,0.00012184,2]
[398934559,1766006631129,-300.0,0.00012184,2]
[398934560,1766006631151,-300.0,0.00012184,2]
[398934561,1766006631173,-1200.0,0.00012184,2]
[398934562,1766006631196,-195.0,0.00012184,2]
[398934563,1766006631220,-250.0,0.00012185,2]
[398934564,1766006631247,-250.0,0.00012185,2]
[398934565,1766006631270,-7083.0,0.00012185,2]
[398934566,1766006633798,2281.72,0.000119,2]
[398934567,1766006746434,348.79,0.00011804,2]
[398934568,1766006778090,1748.66,0.00011752,2]
[398934569,1766006851672,669.0442254,0.00023,120]
[398934570,1766006908603,166.73,9.294e-05,2]
[398934583,1766007031769,-500.0,0.00012091,2]
[398934584,1766007031780,-1.140437,0.00012091,2]
[398934585,1766007031791,-195.0,0.00012152,2]
[398934586,1766007031800,-195.0,0.00012167,2]
[398934587,1766007031810,-92.972338,0.00012177,2]
[398934588,1766007031821,-102.027662,0.00012177,2]
[398934589,1766007031831,-300.0,0.00012182,2]
[398934590,1766007031840,-146.16719787,0.00012182,2]
[398934591,1766007031852,-153.83280213,0.00012182,2]
[398934592,1766007031861,-116.01587485,0.00012182,2]
[398934593,1766007031917,-1083.98412515,0.00012182,2]
[398934594,1766007031927,-300.0,0.00012182,2]
[398934595,1766007031936,-29.27059112,0.00012183,2]
[398934596,1766007031948,-529.36483573,0.00012183,2]
[398934597,1766007031959,-298.4903234,0.00012183,2]
[398934598,1766007031971,-342.87424975,0.00012183,2]
[398934599,1766007031981,-250.0,0.00012184,2]
[398934600,1766007031990,-5679.68819907,0.00012184,2]
[398934601,1766007032000,-693.08117626,0.00012184,2]
[398934602,1766007032010,-10641.78,0.00012185,2]
[398934603,1766007032020,-3483.157,0.00012277,2]
[398934604,1766007032030,-176.455,0.00012277,2]
[398934605,1766007032040,-150.0,0.00012277,2]
[398934606,1766007032049,-151.99563163,0.00012277,2]
[398934607,1766007032059,-136828.52687299,0.00012278,2]
[398934609,1766007032070,-12475.11101736,0.00012278,2]
[398934611,1766007032081,-12777.1828284,0.00012278,2]
[398934614,1766007032094,-29546.03928125,0.00012278,2]
[398934616,1766007032103,-500.0,0.00012326,2]
[398934617,1766007032113,-500.0,0.00012326,2]
[398934618,1766007032122,-500.0,0.00012326,2]
[398934619,1766007032133,-150.0,0.00012326,2]
[398934620,1766007032143,-500.0,0.00012326,2]
[398934621,1766007032153,-500.0,0.00012326,2]
[398934622,1766007032163,-150.0,0.00012326,2]
[398934623,1766007032172,-5228.94805269,0.0001236,2]
[398934626,1766007032195,-273.84430536,0.0001236,2]
[398934628,1766007032208,-6488.50557929,0.0001236,2]
[398934630,1766007032223,-474.202935,0.0001236,2]
[398934631,1766007032234,-375.12799992,0.0001236,2]
[398934632,1766007032326,-2237.07352637,0.0001236,2]
[398934636,1766007037971,-583.72879,0.0001236,2]
[398934638,1766007037993,-6987.24692894,0.0001236,2]
[398934639,1766007038002,-1447.42116389,0.00012431,2]
[398934641,1766007038012,-150.0,0.00012439,2]
[398934642,1766007038021,-500.0,0.00012439,2]
[398934643,1766007038030,-500.0,0.00012439,2]
[398934644,1766007038039,-150.0,0.00012439,2]
[398934645,1766007038048,-150.0,0.00012439,2]
[398934647,1766007038058,-150.0,0.00012439,2]
[398934649,1766007038067,-348.79,0.0001246,2]
[398934651,1766007038076,-500.0,0.00012463,2]
[398934653,1766007038085,-613.63401332,0.00012463,2]
[398934655,1766007038095,-500.0,0.00012463,2]
[398934657,1766007038104,-500.0,0.00012463,2]
[398934659,1766007038114,-500.0,0.00012463,2]
[398934661,1766007038124,-7542.7993,0.00012493,2]
[398934663,1766007038132,-306.31504896,0.000125,2]
[398934665,1766007038142,-500.0,0.0001253,2]
[398934668,1766007038158,-302.97334881,0.0001253,2]
[398934670,1766007038171,-500.0,0.0001253,2]
[398934672,1766007038180,-500.0,0.0001253,2]
[398934675,1766007038190,-500.0,0.0001253,2]
[398934677,1766007038199,-348.24781002,0.0001253,2]
[398934678,1766007038209,-315.11445756,0.0001253,2]
[398934679,1766007038219,-166.71198661,0.0001253,2]
[398934680,1766007038228,-500.0,0.0001253,2]
[398934681,1766007038238,-500.0,0.0001253,2]
[398934682,1766007038247,-500.0,0.0001253,2]
[398934683,1766007038256,-500.0,0.0001253,2]
[398934684,1766007038266,-500.0,0.0001253,2]
[398934685,1766007038275,-500.0,0.0001253,2]
[398934686,1766007038284,-500.0,0.0001253,2]
[398934687,1766007038294,-500.0,0.0001253,2]
[398934688,1766007038303,-500.0,0.0001253,2]
[398934689,1766007038314,-500.0,0.0001253,2]
[398934690,1766007038323,-500.0,0.0001253,2]
[398934691,1766007038332,-500.0,0.0001253,2]
[398934692,1766007038341,-500.0,0.0001253,2]
[398934693,1766007038351,-500.0,0.0001253,2]
[398934694,1766007038360,-500.0,0.0001253,2]
[398934695,1766007038370,-500.0,0.0001253,2]
[398934696,1766007038379,-500.0,0.0001253,2]
[398934697,1766007038388,-500.0,0.0001253,2]
[398934698,1766007038397,-500.0,0.0001253,2]
[398934699,1766007038406,-500.0,0.0001253,2]
[398934700,1766007038416,-505.98779955,0.0001253,2]
[398934701,1766007038425,-150.0,0.00012531,2]
[398934702,1766007038435,-150.0,0.00012531,2]
[398934703,1766007038444,-150.0,0.00012531,2]
[398934704,1766007038453,-150.0,0.00012531,2]
[398934705,1766007038463,-228.81809239,0.00012531,2]
[398934706,1766007038472,-500.0,0.00012531,2]
[398934707,1766007038482,-150.0,0.00012531,2]
[398934708,1766007038491,-150.0,0.00012531,2]
[398934709,1766007038501,-150.82561092,0.00012531,2]
[398934710,1766007038511,-150.0,0.00012531,2]
[398934711,1766007038521,-150.0,0.00012531,2]
[398934712,1766007038530,-150.0,0.00012531,2]
[398934713,1766007038539,-297.13717614,0.00012531,2]
[398934714,1766007038549,-150.0,0.00012531,2]
[398934715,1766007038559,-170.21872884,0.00012531,2]
[398934716,1766007038568,-9999.99,0.00012531,2]
[398934717,1766007038577,-150.0,0.00012531,2]
[398934718,1766007038587,-9999.99,0.00012531,2]
[398934719,1766007038596,-499.99,0.00012531,2]
[398934720,1766007038606,-1807.1,0.00012531,2]
[398934721,1766007038615,-8654.06,0.00012531,2]
[398934722,1766007038625,-29204.14,0.00012531,2]
[398934723,1766007038634,-299.99,0.00012531,2]
[398934724,1766007038644,-150.0,0.00012531,2]
[398934725,1766007038654,-150.0,0.00012531,2]
[398934726,1766007038664,-150.0,0.00012531,2]
[398934727,1766007038674,-500.0,0.00012531,2]
[398934728,1766007038684,-500.0,0.00012531,2]
[398934729,1766007038696,-150.0,0.00012531,2]
[398934730,1766007038711,-500.0,0.00012531,2]
[398934731,1766007038720,-150.0,0.00012531,2]
[398934732,1766007038731,-547.0,0.00012531,2]
[398934733,1766007038742,-500.0,0.00012538,2]
[398934734,1766007038752,-500.0,0.00012538,2]
[398934735,1766007038761,-500.0,0.00012538,2]
[398934736,1766007038772,-150.99,0.00012538,2]
[398934737,1766007038782,-9999.99,0.00012538,2]
[398934738,1766007038792,-4378.76,0.00012538,2]
[398934739,1766007038801,-9999.99,0.00012538,2]
[398934740,1766007038811,-3804.02,0.00012538,2]
[398934741,1766007038821,-150.99,0.00012538,2]
[398934742,1766007038831,-7618.35,0.00012538,2]
[398934743,1766007038841,-1530.11,0.00012538,2]
[398934744,1766007038851,-9999.99,0.00012538,2]
[398934745,1766007038861,-404.9,0.00012538,2]
[398934746,1766007038871,-999.99,0.00012538,2]
[398934747,1766007038881,-2735.1,0.00012538,2]
[398934748,1766007038892,-500.0,0.00012538,2]
[398934749,1766007038902,-150.0,0.00012576,2]
[398934750,1766007038912,-500.0,0.00012576,2]
[398934751,1766007038922,-500.0,0.00012576,2]
[398934752,1766007038932,-178.97693854,0.00012576,2]
[398934753,1766007038942,-150.0,0.00012576,2]
[398934754,1766007038951,-150.0,0.00012576,2]
[398934755,1766007038962,-500.0,0.000126,2]
[398934756,1766007038971,-500.0,0.000126,2]
[398934757,1766007038981,-500.0,0.000126,2]
[398934758,1766007038991,-500.0,0.000126,2]
[398934759,1766007039002,-325.0,0.00012625,2]
[398934760,1766007039011,-367.0,0.0001265,2]
[398934761,1766007039022,-150.0,0.00012668,2]
[398934762,1766007039032,-150.0,0.00012668,2]
[398934763,1766007039042,-150.0,0.00012668,2]
[398934764,1766007039052,-500.0,0.00012668,2]
[398934765,1766007039061,-150.0,0.00012668,2]
[398934766,1766007039071,-150.0,0.00012668,2]
[398934767,1766007039081,-150.0,0.00012668,2]
[398934768,1766007039092,-233.75403059,0.00012668,2]
[398934769,1766007039102,-150.0,0.00012668,2]
[398934770,1766007039112,-150.0,0.00012668,2]
[398934771,1766007039122,-165.99937066,0.00012668,2]
[398934772,1766007039132,-150.0,0.00012668,2]
[398934773,1766007039141,-500.0,0.00012668,2]
[398934774,1766007039152,-150.0,0.00012668,2]
[398934775,1766007039161,-500.0,0.00012668,2]
[398934776,1766007039172,-500.0,0.00012668,2]
[398934777,1766007039182,-150.0,0.00012668,2]
[398934778,1766007039192,-547.0,0.00012668,2]
[398934779,1766007039201,-500.0,0.00012675,2]
[398934780,1766007039211,-500.0,0.00012675,2]
[398934781,1766007039221,-500.0,0.00012675,2]
[398934782,1766007039230,-1000.0,0.00012713,2]
[398934783,1766007039240,-1826.8994,0.00012713,2]
[398934784,1766007039250,-150.0,0.00012713,2]
[398934785,1766007039260,-500.0,0.00012713,2]
[398934786,1766007039270,-500.0,0.00012713,2]
[398934787,1766007039279,-219.30716312,0.00012713,2]
[398934788,1766007039289,-150.0,0.00012713,2]
[398934789,1766007039298,-327.88478406,0.00012737,2]
[398934790,1766007039308,-450.0,0.00012737,2]
[398934791,1766007039318,-500.0,0.00012737,2]
[398934792,1766007039327,-500.0,0.00012737,2]
[398934793,1766007039337,-150.0,0.00012805,2]
[398934794,1766007039347,-203.40949572,0.00012805,2]
[398934795,1766007039364,-150.0,0.00012805,2]
[398934796,1766007039373,-500.0,0.00012805,2]
[398934797,1766007039383,-295.67984655,0.00012805,2]
[398934798,1766007039394,-150.0,0.00012805,2]
[398934799,1766007039404,-150.0,0.00012805,2]
[398934800,1766007039414,-200.0,0.00012805,2]
[398934801,1766007039423,-150.0,0.00012805,2]
[398934802,1766007039433,-150.0,0.00012805,2]
[398934803,1766007039443,-500.0,0.00012805,2]
[398934804,1766007039453,-150.0,0.00012805,2]
[398934805,1766007039464,-500.0,0.00012805,2]
[398934806,1766007039475,-500.0,0.00012805,2]
[398934807,1766007039484,-169.00704215,0.00012805,2]
[398934808,1766007039495,-547.0,0.00012805,2]
[398934809,1766007039506,-1627.19,0.00012805,2]
[398934810,1766007039516,-200.0,0.00012805,2]
[398934811,1766007039526,-500.0,0.00012805,2]
[398934812,1766007039536,-200.0,0.00012805,2]
[398934813,1766007039548,-151.0,0.00012805,2]
[398934814,1766007039559,-151.0,0.00012805,2]
[398934815,1766007039568,-151.0,0.00012805,2]
[398934816,1766007039578,-151.0,0.00012805,2]
[398934817,1766007039587,-151.0,0.00012805,2]
[398934818,1766007039597,-151.0,0.00012805,2]
[398934819,1766007039607,-151.0,0.00012805,2]
[398934820,1766007039617,-500.0,0.00012805,2]
[398934821,1766007039627,-151.0,0.00012805,2]
[398934823,1766007039636,-500.0,0.00012805,2]
[398934824,1766007039646,-151.0,0.00012805,2]
[398934825,1766007039656,-500.0,0.00012805,2]
[398934826,1766007039665,-151.0,0.00012805,2]
[398934827,1766007039675,-151.0,0.00012805,2]
[398934828,1766007039684,-500.0,0.00012805,2]
[398934829,1766007039698,-500.0,0.00012805,2]
[398934830,1766007039708,-151.0,0.00012805,2]
[398934831,1766007039718,-500.0,0.00012805,2]
[398934832,1766007039727,-500.0,0.00012805,2]
[398934833,1766007039738,-151.0,0.00012805,2]
[398934834,1766007039748,-500.0,0.00012805,2]
[398934835,1766007039758,-151.0,0.00012805,2]
[398934836,1766007039772,-500.0,0.00012805,2]
[398934837,1766007039783,-151.0,0.00012805,2]
[398934838,1766007039793,-500.0,0.00012805,2]
[398934839,1766007039804,-151.0,0.00012805,2]
[398934840,1766007039815,-500.0,0.00012805,2]
[398934841,1766007039825,-151.0,0.00012805,2]
[398934842,1766007039835,-500.0,0.00012805,2]
[398934843,1766007039846,-151.0,0.00012805,2]
[398934844,1766007039857,-151.0,0.00012805,2]
[398934845,1766007039866,-500.0,0.00012805,2]
[398934846,1766007039876,-151.0,0.00012805,2]
[398934847,1766007039886,-500.0,0.00012805,2]
[398934848,1766007039896,-500.0,0.00012805,2]
[398934849,1766007039905,-500.0,0.00012805,2]
[398934850,1766007039915,-500.0,0.00012805,2]
[398934851,1766007039925,-500.0,0.00012805,2]
[398934852,1766007039935,-200.0,0.00012805,2]
[398934853,1766007039945,-151.0,0.00012805,2]
[398934854,1766007039955,-151.0,0.00012805,2]
[398934855,1766007039964,-151.0,0.00012805,2]
[398934856,1766007039974,-151.0,0.00012805,2]
[398934857,1766007039983,-151.0,0.00012805,2]
[398934858,1766007039993,-151.0,0.00012805,2]
[398934859,1766007040002,-151.0,0.00012805,2]
[398934860,1766007040013,-151.0,0.00012805,2]
[398934861,1766007040022,-151.0,0.00012805,2]
[398934862,1766007040032,-151.0,0.00012805,2]
[398934863,1766007040041,-151.0,0.00012805,2]
[398934864,1766007040050,-151.0,0.00012805,2]
[398934865,1766007040059,-151.0,0.00012805,2]
[398934866,1766007040069,-500.0,0.00012805,2]
[398934867,1766007040078,-355.42802195,0.00012805,2]
[398934868,1766007040087,-500.0,0.00012812,2]
[398934869,1766007040097,-500.0,0.00012812,2]
[398934870,1766007040106,-500.0,0.00012812,2]
[398934871,1766007040116,-500.0,0.00012812,2]
[398934872,1766007040124,-461.0,0.00012822,2]
[398934873,1766007040134,-1734.0,0.00012847,2]
[398934874,1766007040142,-229.82138207,0.0001285,2]
[398934875,1766007040152,-500.0,0.0001285,2]
[398934876,1766007040161,-500.0,0.0001285,2]
[398934878,1766007040171,-200.0,0.0001285,2]
[398934879,1766007040180,-22648.67811748,0.00012864,2]
[398934882,1766007040189,-1441.0,0.00012873,2]
[398934884,1766007040199,-500.0,0.00012874,2]
[398934886,1766007040208,-500.0,0.00012874,2]
[398934888,1766007040218,-494.32,0.00012878,2]
[398934890,1766007040227,-1087.0,0.00012898,2]
[398934892,1766007040236,-525.14587518,0.00012922,2]
[398934894,1766007040247,-1935.0,0.00012924,2]
[398934896,1766007040257,-150.0,0.00012942,2]
[398934898,1766007040266,-268.86787241,0.00012942,2]
[398934900,1766007040275,-600.0,0.00012942,2]
[398934902,1766007040284,-150.0,0.00012942,2]
[398934904,1766007040293,-150.0,0.00012942,2]
[398934906,1766007040302,-500.0,0.00012942,2]
[398934908,1766007040312,-200.0,0.00012942,2]
[398934910,1766007040321,-500.0,0.00012942,2]
[398934912,1766007040330,-500.0,0.00012942,2]
[398934914,1766007040340,-547.0,0.00012942,2]
[398934916,1766007040349,-150.16399039,0.00012949,2]
[398934918,1766007040358,-500.0,0.00012949,2]
[398934920,1766007040367,-500.0,0.00012949,2]
[398934922,1766007040377,-1434.0,0.00012962,2]
[398934924,1766007040386,-500.0,0.00012987,2]
[398934926,1766007040395,-500.0,0.00012987,2]
[398934929,1766007040405,-1070.0,0.00013,2]
[398934931,1766007040414,-417.0,0.00013,2]
[398934933,1766007040423,-3406.26930667,0.00013,2]
[398934935,1766007040432,-5925.34261441,0.00013,2]
[398934937,1766007040442,-500.0,0.00013011,2]
[398934939,1766007040451,-500.0,0.00013011,2]
[398934941,1766007040460,-610.0,0.00013026,2]
[398934943,1766007040470,-321.0,0.00013026,2]
[398934945,1766007040480,-589.14569907,0.00013052,2]
[398934947,1766007040490,-193.52,0.00013064,2]
[398934949,1766007040499,-1447.42116383,0.00013069,2]
[398934951,1766007040508,-150.0,0.00013079,2]
[398934953,1766007040517,-150.0,0.00013079,2]
[398934955,1766007040527,-179.96290479,0.00013079,2]
[398934957,1766007040537,-314.38738988,0.00013079,2]
[398934959,1766007040546,-500.0,0.00013079,2]
[398934961,1766007040556,-500.0,0.00013079,2]
[398934963,1766007040565,-547.0,0.00013079,2]
[398934965,1766007040574,-1627.19,0.00013079,2]
[398934967,1766007040583,-500.0,0.00013086,2]
[398934969,1766007040593,-500.0,0.00013086,2]
[398934971,1766007040601,-500.0,0.00013086,2]
[398934973,1766007040611,-348.79,0.00013116,2]
[398934975,1766007040620,-500.0,0.00013124,2]
[398934977,1766007040629,-500.0,0.00013124,2]
[398934980,1766007040638,-150.0,0.00013148,2]
[398934982,1766007040647,-202.10428919,0.00013148,2]
[398934984,1766007040656,-250.0,0.00013216,2]
[398934986,1766007040666,-222.6774988,0.00013216,2]
[398934988,1766007040675,-500.0,0.00013216,2]
[398934990,1766007040684,-556.58691123,0.00013216,2]
[398934992,1766007040697,-547.0,0.00013216,2]
[398934994,1766007040706,-500.0,0.00013223,2]
[398934996,1766007040715,-500.0,0.00013223,2]
[398934998,1766007040724,-500.0,0.00013261,2]
[398935000,1766007040734,-500.0,0.00013261,2]
[398935002,1766007040744,-250.0,0.00013334,2]
[398935004,1766007040753,-195.0,0.00013334,2]
[398935006,1766007040763,-500.0,0.00013353,2]
[398935008,1766007040773,-547.0,0.00013353,2]
[398935010,1766007040781,-1627.19,0.00013353,2]
[398935012,1766007040791,-200.0,0.00013353,2]
[398935014,1766007040800,-500.0,0.00013353,2]
[398935016,1766007040810,-500.0,0.0001336,2]
[398935018,1766007040819,-500.0,0.0001336,2]
[398935020,1766007040828,-195.0,0.00013368,2]
[398935022,1766007040838,-22648.67811748,0.00013369,2]
[398935024,1766007040847,-255.0,0.0001337,2]
[398935026,1766007040857,-420.0,0.00013371,2]
[398935028,1766007040866,-216.0,0.00013372,2]
[398935030,1766007040876,-549.65597916,0.00013373,2]
[398935032,1766007040886,-500.0,0.00013373,2]
[398935033,1766007040895,-500.0,0.00013373,2]
[398935036,1766007040905,-634.05894568,0.00013373,2]
[398935038,1766007040914,-167.51806982,0.00013373,2]
[398935039,1766007040924,-500.0,0.00013373,2]
[398935042,1766007040933,-562.4542945,0.00013373,2]
[398935043,1766007040943,-216.18014628,0.00013373,2]
[398935046,1766007040952,-500.1936276,0.00013373,2]
[398935048,1766007040961,-500.0,0.00013373,2]
[398935050,1766007040970,-160.16120282,0.00013373,2]
[398935052,1766007040979,-500.0,0.00013373,2]
[398935054,1766007040989,-500.0,0.00013373,2]
[398935056,1766007040998,-500.0,0.00013373,2]
[398935058,1766007041007,-500.0,0.00013373,2]
[398935060,1766007041016,-500.0,0.00013398,2]
[398935062,1766007041025,-500.0,0.00013398,2]
[398935064,1766007041035,-1680.0,0.000134,2]
[398935066,1766007041044,-250.0,0.00013401,2]
[398935068,1766007041053,-193.0,0.00013401,2]
[398935070,1766007041062,-515.0,0.00013439,2]
[398935072,1766007041072,-500.0,0.0001349,2]
[398935074,1766007041081,-547.0,0.0001349,2]
[398935076,1766007041091,-500.0,0.00013497,2]
[398935078,1766007041100,-500.0,0.00013535,2]
[398935080,1766007041110,-500.0,0.00013535,2]
[398935082,1766007041119,-500.0,0.00013627,2]
[398935084,1766007041129,-547.0,0.00013627,2]
[398935086,1766007041138,-1627.19,0.00013627,2]
[398935088,1766007041148,-503.30440339,0.00013634,2]
[398935090,1766007041158,-500.0,0.00013634,2]
[398935092,1766007041167,-500.0,0.00013672,2]
[398935095,1766007041177,-500.0,0.00013672,2]
[398935097,1766007041187,-500.0,0.00013698,2]
[398935099,1766007041196,-500.0,0.00013698,2]
[398935101,1766007041205,-500.0,0.00013698,2]
[398935103,1766007041214,-500.0,0.00013698,2]
[398935105,1766007041224,-500.0,0.00013698,2]
[398935107,1766007041233,-500.0,0.00013698,2]
[398935109,1766007041242,-500.0,0.00013698,2]
[398935111,1766007041251,-500.0,0.00013698,2]
[398935113,1766007041260,-500.0,0.00013698,2]
[398935115,1766007041269,-500.0,0.00013698,2]
[398935117,1766007041278,-500.0,0.00013698,2]
[398935119,1766007041287,-500.0,0.00013698,2]
[398935121,1766007041296,-500.0,0.00013698,2]
[398935123,1766007041305,-500.0,0.00013698,2]
[398935125,1766007041315,-500.0,0.00013698,2]
[398935127,1766007041324,-500.0,0.00013698,2]
[398935129,1766007041333,-500.0,0.00013698,2]
[398935131,1766007041343,-500.0,0.00013698,2]
[398935133,1766007041353,-500.0,0.00013698,2]
[398935135,1766007041362,-500.0,0.00013698,2]
[398935137,1766007041371,-500.0,0.00013698,2]
[398935139,1766007041380,-500.0,0.00013698,2]
[398935141,1766007041390,-500.0,0.00013698,2]
[398935143,1766007041400,-500.0,0.00013698,2]
[398935145,1766007041410,-500.0,0.00013698,2]
[398935147,1766007041420,-500.0,0.00013698,2]
[398935149,1766007041430,-500.0,0.00013698,2]
[398935151,1766007041440,-500.0,0.00013698,2]
[398935153,1766007041450,-500.0,0.00013698,2]
[398935156,1766007041460,-500.0,0.00013698,2]
[398935158,1766007041469,-500.0,0.00013698,2]
[398935160,1766007041479,-500.0,0.00013698,2]
[398935161,1766007041487,-359.44010989,0.00013698,2]
[398935164,1766007041497,-500.0,0.00013698,2]
[398935166,1766007041506,-467.07246893,0.00013698,2]
[398935168,1766007041516,-500.0,0.00013698,2]
[398935170,1766007041525,-645.50218631,0.00013698,2]
[398935172,1766007041536,-500.0,0.00013698,2]
[398935174,1766007041545,-236.05898136,0.00013698,2]
[398935176,1766007041555,-500.0,0.00013698,2]
[398935177,1766007041565,-500.0,0.00013698,2]
[398935178,1766007041574,-500.0,0.00013698,2]
[398935179,1766007041584,-358.93,0.00013698,2]
[398935180,1766007041593,-500.0,0.00013698,2]
[398935181,1766007041603,-500.0,0.00013698,2]
[398935182,1766007041613,-500.0,0.00013698,2]
[398935183,1766007041623,-500.0,0.00013698,2]
[398935184,1766007041633,-500.0,0.00013698,2]
[398935185,1766007041642,-500.0,0.00013698,2]
[398935186,1766007041652,-500.0,0.00013698,2]
[398935187,1766007041662,-500.0,0.00013698,2]
[398935189,1766007041672,-500.0,0.00013698,2]
[398935191,1766007041681,-500.0,0.00013698,2]
[398935193,1766007041692,-500.0,0.00013698,2]
[398935195,1766007041702,-500.0,0.00013698,2]
[398935197,1766007041712,-500.0,0.00013698,2]
[398935199,1766007041721,-500.0,0.00013698,2]
[398935201,1766007041731,-530.90558396,0.00013698,2]
[398935203,1766007041740,-500.0,0.00013698,2]
[398935205,1766007041750,-500.0,0.00013698,2]
[398935207,1766007041760,-500.0,0.00013698,2]
[398935209,1766007041772,-500.0,0.00013698,2]
[398935211,1766007041781,-357.14795574,0.00013698,2]
[398935213,1766007041790,-500.0,0.00013698,2]
[398935215,1766007041799,-503.92687303,0.00013698,2]
[398935217,1766007041809,-500.0,0.00013698,2]
[398935219,1766007041819,-500.0,0.00013698,2]
[398935221,1766007041828,-500.0,0.00013698,2]
[398935223,1766007041837,-500.0,0.00013698,2]
[398935225,1766007041847,-500.0,0.00013698,2]
[398935227,1766007041857,-500.0,0.00013698,2]
[398935229,1766007041866,-500.0,0.00013698,2]
[398935232,1766007041875,-514.23721699,0.00013698,2]
[398935233,1766007041884,-500.0,0.00013698,2]
[398935236,1766007041894,-500.0,0.00013698,2]
[398935238,1766007041903,-500.0,0.00013698,2]
[398935240,1766007041912,-500.0,0.00013698,2]
[398935242,1766007041922,-500.0,0.00013698,2]
[398935244,1766007041931,-500.0,0.00013698,2]
[398935246,1766007041940,-500.0,0.00013698,2]
[398935248,1766007041950,-500.0,0.00013698,2]
[398935250,1766007041960,-500.0,0.00013698,2]
[398935252,1766007041969,-500.0,0.00013698,2]
[398935254,1766007041979,-532.30126089,0.00013698,2]
[398935256,1766007041988,-500.0,0.00013698,2]
[398935258,1766007041998,-500.0,0.00013698,2]
[398935260,1766007042007,-500.0,0.00013698,2]
[398935294,1766007042017,-586.97867611,0.00013698,2]
[398935297,1766007042343,-500.0,0.00013698,2]
[398935299,1766007042353,-500.0,0.00013698,2]
[398935301,1766007042362,-500.0,0.00013698,2]
[398935303,1766007042371,-500.0,0.00013698,2]
[398935305,1766007042381,-500.0,0.00013698,2]
[398935307,1766007042390,-500.0,0.00013698,2]
[398935309,1766007042400,-500.0,0.00013698,2]
[398935312,1766007042414,-500.0,0.00013698,2]
[398935314,1766007042423,-500.0,0.00013698,2]
[398935316,1766007042432,-500.0,0.00013698,2]
[398935318,1766007042441,-286.90864955,0.00013698,2]
[398935320,1766007042451,-500.0,0.00013698,2]
[398935321,1766007042465,-500.0,0.00013698,2]